Cogmind - Beta 9.6 @@@ ROGUE MODE // 2020.06.04 @ 10:08:45 Player: 3.14 Result: Self-destructed Performance ------------- Evolutions (2) 1000 Regions Visited (5) 1000 Robots Destroyed (30) 150 Value Destroyed (565) 565 Prototype IDs (0) 0 Alien Tech Used (0) 0 Bonus (0) 0 TOTAL SCORE: 2715 Bonus ------- None Cogmind --------- Core Integrity 511/550 Matter 238/300 Energy 160/160 System Corruption 0% Temperature Cool (4) Movement Treading (200) Ox2 Location -8/Materials Parts ------- > --- POWER (1) -------- Light Nuclear Core > --- PROPULSION (3) --- Light Treads > --- UTILITY (5) ------ Improved Heat Sink Large Storage Unit Large Storage Unit > --- WEAPON (2) ------- Bore Cannon > --- INVENTORY (16) --- Large Storage Unit Hardlight Generator Component Analysis Suite System Backup Module Gatling Laser Light Assault Rifle Light Assault Rifle Light Assault Rifle Grenade Launcher Great Axe Peak State ------------ > --- POWER ------------ Light Nuclear Core > --- PROPULSION ------- Light Treads Light Treads > --- UTILITY ---------- Improved Heat Sink Large Storage Unit Large Storage Unit Light Armor Plating > --- WEAPON ----------- Bore Cannon > --- INVENTORY -------- Large Storage Unit Hardlight Generator Component Analysis Suite System Backup Module Gatling Laser Light Assault Rifle Light Assault Rifle Light Assault Rifle Grenade Launcher Great Axe [Rating: 18] Favorites ----------- Power Light Ion Engine Engine Light Ion Engine Power Core Light Nuclear Core Propulsion Light Treads Treads Light Treads Utility Improved Heat Sink Device Improved Heat Sink Storage Large Storage Unit Processor Seismic Analyzer Protection Light Armor Plating Weapon Beam Cannon Energy Gun Particle Gun Energy Cannon Beam Cannon Ballistic Gun Light Assault Rifle Ballistic Cannon Bore Cannon Launcher Grenade Launcher Build | -11 -10 -10 -10 -9 -8 ------- Run | Scr Mat Min Exi Min Mat Slots Evolved 4 | . . . . . 4 Power . | . . . . . . Propulsion 1 | . . . . . 1 Utility 3 | . . . . . 3 Weapon . | . . . . . . Parts Attached 27 | 7 9 4 1 . 6 Power 4 | 1 1 1 . . 1 Engine 3 | 1 1 1 . . . Core 1 | . . . . . 1 Reactor . | . . . . . . Propulsion 3 | 2 1 . . . . Treads 3 | 2 1 . . . . Leg . | . . . . . . Wheel . | . . . . . . Hover . | . . . . . . Flight . | . . . . . . Utility 6 | 2 . 1 1 . 2 Device 1 | . . 1 . . . Storage 3 | 1 . . 1 . 1 Processor 1 | 1 . . . . . Hackware . | . . . . . . Protection 1 | . . . . . 1 Artifact . | . . . . . . Weapon 14 | 2 7 2 . . 3 Energy Gun 3 | 1 . 1 . . 1 Energy Cannon 1 | . . 1 . . . Ballistic Gun 4 | 1 3 . . . . Ballistic Cannon 1 | . . . . . 1 Launcher 5 | . 4 . . . 1 Special Weapon . | . . . . . . Impact Weapon . | . . . . . . Slashing Weapon . | . . . . . . Piercing Weapon . | . . . . . . Special Melee Weapon . | . . . . . . Unidentified Prototypes . | . . . . . . Parts Lost 6 | . 1 2 . . 3 Power 2 | . . 1 . . 1 Propulsion 1 | . . . . . 1 Utility 1 | . . . . . 1 Weapon 2 | . 1 1 . . . Highest Loss Streak 2 | . 1 2 . . 2 Average Slot Usage (%) 96 | . 99 100 100 100 70 Engine 12 | . 14 14 14 14 5 Treads 26 | . 27 28 28 28 17 Device 8 | . . 11 14 14 9 Storage 14 | . 14 14 14 14 18 Processor 4 | . 14 2 . . . Energy Gun 12 | . 14 12 14 14 7 Energy Cannon 9 | . . 13 14 14 7 Ballistic Gun 4 | . 13 2 . . . Naked Turns . | . . . . . . Heaviest Build 50 | 10 14 14 26 26 50 Greatest Support 40 | 40 40 40 40 40 40 Greatest Overweight (x) 1 | . . . . . 1 Average Overweight (x) . | . . . . . 1 Largest Inventory Capacity 16 | 6 6 6 10 10 16 Average Capacity 8 | 5 6 6 8 10 16 Most Carried 11 | 2 6 6 8 10 11 Average Carried 6 | 1 4 5 7 9 10 Final Capacity 16 | 6 6 6 10 10 16 Final Carried 10 | 2 6 6 8 10 10 Class Distribution -------------------- 98% | Mutant Dominant Class ---------------- Mutant | -10/Materials Mutant | -10/Mines Mutant | -10/Exiles Mutant | -9/Mines Mutant | -8/Materials Resources | -11 -10 -10 -10 -9 -8 ----------- Run | Scr Mat Min Exi Min Mat Matter Collected 581 | 273 172 72 . 10 54 Remotely . | . . . . . . Salvage Created 716 | 52 265 98 . 14 287 Parts 52 | 4 24 4 . . 20 Haulers Intercepted 2 | . . . . . 2 Recyclers Shooed 1 | . . . . . 1 Parts Field Recycled . | . . . . . . Retrieved Matter . | . . . . . . Parts Self-Destructed . | . . . . . . Prevented . | . . . . . . Kills | -11 -10 -10 -10 -9 -8 ------- Run | Scr Mat Min Exi Min Mat Combat Hostiles Destroyed 22 | . 12 2 . 1 7 Guns 7 | . 3 1 . . 3 Cannons 4 | . . 1 . 1 2 AOE 11 | . 9 . . . 2 Classes Destroyed 10 | 2 5 . . 1 2 Worker 1 | . 1 . . . . Builder 1 | . 1 . . . . Tunneler 1 | 1 . . . . . Hauler 2 | . . . . . 2 Recycler 2 | 1 . . . . 1 Watcher 1 | . 1 . . . . Swarmer 11 | . 6 . . . 5 Grunt 9 | . 6 2 . . 1 Sentry 1 | . . . . . 1 Assembled 1 | . . . . 1 . Best Kill Streak 10 | 1 10 2 . 1 6 Combat Bots Only 7 | . 7 2 . 1 4 Max Kills in Single Turn 3 | 1 3 1 . 1 2 Gunslinging . | . . . . . . Exploded 3 | . 3 . . . 2 Melee . | . . . . . . Uniques/NPCs Destroyed . | . . . . . . Combat | -11 -10 -10 -10 -9 -8 -------- Run | Scr Mat Min Exi Min Mat Damage Taken 858 | . 260 127 . 14 457 Core 47 | . 8 . . . 39 Absorbed by Shields . | . . . . . . Core Remaining (%) 98 | 100 . . . 96 . Volleys Fired 64 | 6 22 8 . 2 26 Largest 2 | 2 2 2 . 2 2 Hottest 125 | 70 70 80 . 125 125 Shots Fired 108 | 12 33 16 . 4 43 Gun 63 | 12 22 10 . 2 17 Cannon 33 | . . 6 . 2 25 Launcher 12 | . 11 . . . 1 Special . | . . . . . . Kinetic 33 | 6 11 8 . . 8 Thermal 63 | 6 11 8 . 4 34 Explosive 12 | . 11 . . . 1 Electromagnetic . | . . . . . . Robot Hit Streak 9 | 6 8 6 . 3 9 Robot Miss Streak 4 | 1 2 1 . 1 4 Penetration Max 1 | . . . . . 1 Secondary Targets . | . . . . . . Shots Hit Robots 67 | 9 16 13 . 3 26 Core Hits 41 | 3 19 4 . 2 13 Critical Hits 2 | . . . . . 2 Critical Kills 2 | . . . . . 2 Critical Parts Destroyed . | . . . . . . Melee Attacks . | . . . . . . Impact . | . . . . . . Slashing . | . . . . . . Piercing . | . . . . . . Sneak Attacks . | . . . . . . Combat Hostiles . | . . . . . . Follow-up Attacks . | . . . . . . Damage Inflicted 1661 | 106 753 167 . 33 602 Guns 590 | 100 156 80 . 15 239 Cannons 371 | . . 87 . 17 267 Explosions 680 | . 597 . . . 83 Melee . | . . . . . . Ramming 20 | 6 . . . 1 13 Kinetic 246 | 37 80 55 . . 74 Thermal 715 | 63 76 112 . 32 432 Explosive 680 | . 597 . . . 83 Electromagnetic . | . . . . . . Impact . | . . . . . . Slashing . | . . . . . . Piercing . | . . . . . . Highest Corruption . | . . . . . . Average Corruption . | . . . . . . Corruption Purged . | . . . . . . Overload Shots . | . . . . . . Overflow Damage 39 | . 35 4 . . . Projectiles 4 | . . 4 . . . Explosions 35 | . 35 . . . . Melee . | . . . . . . Knockbacks 2 | . . . . . 2 Impact . | . . . . . . Kinetic 2 | . . . . . 2 Secondary . | . . . . . . Self-Inflicted Damage 52 | . 52 . . . . Shots 3 | . 3 . . . . Rammed 4 | 1 . . . 1 2 Targets Rammed 5 | 2 . . . 1 2 Kicked . | . . . . . . Crushed 1 | 1 . . . . . Highest Temperature 204 | 100 145 204 . 42 45 Average Temperature 51 | 57 60 94 . 22 23 Received Heat Transfer 315 | . 57 69 . . 189 Siege Activations . | . . . . . . Robots Corrupted . | . . . . . . Combat Hostiles . | . . . . . . Parts Fried . | . . . . . . Impact Corruptions . | . . . . . . Robots Melted . | . . . . . . Combat Hostiles . | . . . . . . Parts Melted 4 | . . 1 . . 3 Heat Transferred 1702 | 185 222 259 . 74 962 Parts Sabotaged . | . . . . . . Parts Stolen . | . . . . . . Parts Stripped . | . . . . . . Power Chain Reactions . | . . . . . . Missiles Intercepted . | . . . . . . Alert | -11 -10 -10 -10 -9 -8 ------- Run | Scr Mat Min Exi Min Mat Peak Influence 272 | 10 272 92 . 15 215 Average Influence 76 | 5 130 89 . 3 90 Maximum Alert Level 1 | . 1 . . . 1 Low Security (%) 87 | 100 66 100 . 100 97 Level 1 12 | . 33 . . . 2 Level 2 . | . . . . . . Level 3 . | . . . . . . Level 4 . | . . . . . . Level 5 . | . . . . . . High Security . | . . . . . . Max Security . | . . . . . . Squads Dispatched 4 | . 2 . . 1 1 Investigation 3 | . 2 . . 1 . Extermination . | . . . . . . Reinforcement 1 | . . . . . 1 Assault . | . . . . . . Garrison . | . . . . . . Intercept . | . . . . . . Construction Impeded . | . . . . . . Haulers Reinforced . | . . . . . . Stealth | -11 -10 -10 -10 -9 -8 --------- Run | Scr Mat Min Exi Min Mat Distress Signals 3 | . 1 . . 1 1 Communications Jammed . | . . . . . . Distress Signals . | . . . . . . Times Spotted 28 | . 15 2 . 1 10 Peak Tracking Total 6 | . 4 2 . 1 6 Tactical Retreats . | . . . . . . Traps | -11 -10 -10 -10 -9 -8 ------- Run | Scr Mat Min Exi Min Mat Traps Triggered 2 | . 1 . . . 1 Indirectly . | . . . . . . Trap Hack Attempts . | . . . . . . Triggered . | . . . . . . Disarmed . | . . . . . . Reprogrammed . | . . . . . . Reused . | . . . . . . Traps Extracted . | . . . . . . Installed . | . . . . . . Triggered . | . . . . . . Machines | -11 -10 -10 -10 -9 -8 ---------- Run | Scr Mat Min Exi Min Mat Machines Disabled 2 | . 1 . . . 1 Max in Single Turn 1 | . 1 . . . 1 Machines Sabotaged . | . . . . . . Garrisons Compromised . | . . . . . . Overloaded Fab Kills . | . . . . . . Fab Network Shutdowns . | . . . . . . Hacking | -11 -10 -10 -10 -9 -8 --------- Run | Scr Mat Min Exi Min Mat Machines Accessed 7 | . 4 . 1 1 1 Terminals 3 | . 3 . . . . Fabricators . | . . . . . . Repair Stations 1 | . 1 . . . . Recycling Units . | . . . . . . Scanalyzers 1 | . . . . . 1 Garrison Access . | . . . . . . Total Hacks 20 | . 15 . 1 1 3 Successful 12 | . 8 . 1 1 2 Failed 8 | . 7 . . . 1 Catastrophic . | . . . . . . Database Lockouts . | . . . . . . Manual 11 | . 11 . . . . Terminals 13 | . 13 . . . . Fabricators . | . . . . . . Repair Stations 2 | . 2 . . . . Recycling Units . | . . . . . . Scanalyzers 3 | . . . . . 3 Garrison Access . | . . . . . . Terminal Hacks 6 | . 4 . 1 1 . Record 1 | . . . 1 . . Robot Analysis 1 | . 1 . . . . Open Door 1 | . . . . 1 . Terminal Index 1 | . 1 . . . . Locate Traps 2 | . 2 . . . . Fabricator Hacks . | . . . . . . Repair Station Hacks 2 | . 2 . . . . Scan Component 1 | . 1 . . . . Repair 1 | . 1 . . . . Recycling Unit Hacks . | . . . . . . Scanalyzer 2 | . . . . . 2 Insert Component 1 | . . . . . 1 Analyze 1 | . . . . . 1 Garrison Access Hacks . | . . . . . . Unauthorized Hacks 2 | . 2 . . . . Terminals 2 | . 2 . . . . Botnet 2 | . 2 . . . . Fabricators . | . . . . . . Repair Stations . | . . . . . . Recycling Units . | . . . . . . Scanalyzers . | . . . . . . Garrison Access . | . . . . . . Data Cores Recovered . | . . . . . . Used . | . . . . . . Hacking Detections 5 | . 4 . . . 1 Full Trace Events 1 | . 1 . . . . Feedback Events . | . . . . . . Feedback Blocked . | . . . . . . Robot Schematics Acquired . | . . . . . . Robots Built . | . . . . . . Matter . | . . . . . . Time . | . . . . . . Total Robot Build Rating . | . . . . . . Part Schematics Acquired 1 | . . . . . 1 Parts Built . | . . . . . . Matter . | . . . . . . Time . | . . . . . . Total Part Build Rating . | . . . . . . Parts Repaired 1 | . 1 . . . . Time 26 | . 26 . . . . Parts Recycled . | . . . . . . Recycled Matter . | . . . . . . Retrieved Matter . | . . . . . . Retrieved Components . | . . . . . . Parts Scanalyzed 1 | . . . . . 1 Part Schematics Acquired 1 | . . . . . 1 Parts Damaged . | . . . . . . Bothacking | -11 -10 -10 -10 -9 -8 ------------ Run | Scr Mat Min Exi Min Mat Used RIF Installer . | . . . . . . Robots Hacked . | . . . . . . Non-combat . | . . . . . . Combat . | . . . . . . Robot Hacks Applied . | . . . . . . Relay Couplers Released . | . . . . . . Robots Rewired . | . . . . . . Allies Hacked . | . . . . . . Hacks Repelled . | . . . . . . Allies | -11 -10 -10 -10 -9 -8 -------- Run | Scr Mat Min Exi Min Mat Total Allies . | . . . . . . Largest Group . | . . . . . . Highest-Rated Group . | . . . . . . Highest-Rated Ally . | . . . . . . Total Orders . | . . . . . . Ally Attacks . | . . . . . . Total Damage . | . . . . . . Kills . | . . . . . . Allies Corrupted . | . . . . . . Allies Melted . | . . . . . . Intel | -11 -10 -10 -10 -9 -8 ------- Run | Scr Mat Min Exi Min Mat Robot Analysis Total 1 | . 1 . . . . Derelict Logs Recovered 1 | . . 1 . . . Drone Launches . | . . . . . . Drone Recoveries . | . . . . . . Exploration | -11 -10 -10 -10 -9 -8 ------------- Run | Scr Mat Min Exi Min Mat Turns Passed 1742 | 107 480 237 386 329 203 Spaces Moved 805 | 50 236 129 240 85 65 Core 4 | 4 . . . . . Treads 801 | 46 236 129 240 85 65 Legs . | . . . . . . Wheels . | . . . . . . Hover . | . . . . . . Flight . | . . . . . . Fastest Speed 50 | 50 160 160 160 160 180 Average Speed 161 | 151 160 160 160 160 180 Slowest Speed 180 | 160 160 160 160 160 180 Overloaded Moves . | . . . . . . Propulsion Burnouts . | . . . . . . Robots Hopped . | . . . . . . Cave-ins Triggered . | . . . . . . Exploration Rate (%) 29 | 3 43 38 60 20 11 Regions Visited 5 Branch Regions 3 Pre-discovered Areas 1 | . . . 1 . . Known Exits Taken . | . . . . . . Unknown Exits Taken 5 | 1 1 1 1 1 . Scrap Searched . | . . . . . . Spaces Dug 8 | . 8 . . . . Terrain Destroyed 75 | . 64 . . . 11 Melee . | . . . . . . Projectile 2 | . . . . . 2 AOE 73 | . 64 . . . 9 Actions | -11 -10 -10 -10 -9 -8 --------- Run | Scr Mat Min Exi Min Mat Total 1140 | 66 305 146 243 275 105 Wait 213 | . 32 . . 180 1 Move 800 | 50 234 128 239 84 65 Hop . | . . . . . . Pick Up 22 | 2 6 4 2 5 3 Fast Attach 10 | 7 1 1 . . 1 Attach 6 | . 1 2 . . 3 Detach . | . . . . . . Swap 11 | . 7 1 1 . 2 Drop 10 | . 2 2 1 3 2 Fire 64 | 6 22 8 . 2 26 Melee . | . . . . . . Ram . | . . . . . . Kick . | . . . . . . Crush 4 | 1 . . . 1 2 Escape Stasis . | . . . . . . Rewire . | . . . . . . Trap . | . . . . . . Miscellaneous . | . . . . . . Route ------- -11/Scrapyard -10/Materials (discovered 2 exits: [*Mat] / [*Min]) -10/Mines -10/Exiles -9/Mines -8/Materials History --------- Turn | Location | Event 3 | -11/Scrapyard | Discovered new exit (range 15) 108 | -11/Scrapyard | Entered Materials 312 | -10/Materials | Build established: Mutant 368 | -10/Materials | Discovered new exit (range 10) 371 | -10/Materials | Destroyed 7 combat bots 489 | -10/Materials | Repaired Lgt. Treads 499 | -10/Materials | Discovered new exit (range 7) 588 | -10/Materials | Entered Mines 818 | -10/Mines | Deemed a non-threat by the Exiles lab entrance 818 | -10/Mines | Discovered new exit (range 5) 825 | -10/Mines | Entered Exiles 865 | -10/Exiles | Met 8R-AWN 893 | -10/Exiles | Met EX-HEX 975 | -10/Exiles | Met EX-DEC 1096 | -10/Exiles | Learned location of Zion (-7) 1121 | -10/Exiles | Met EX-BIN 1193 | -10/Exiles | Discovered new exit (range 14) 1211 | -10/Exiles | Entered Mines 1225 | -9/Mines | Met a Derelict shopkeep closing up shop 1235 | -9/Mines | Assembled infested the area 1240 | -9/Mines | Assisted by a Guerilla fighting off Assembled 1532 | -9/Mines | Discovered new exit (range 5) 1540 | -9/Mines | Entered Materials 1540 | -8/Materials | Evolved 4 slots: Propulsion x1, Utility x3 1743 | -8/Materials | Self-destructed Last Messages --------------- 01704_ Acquired Lgt. Assault Rifle. 01705_ K-01 Serf collects debris. 01709_ Slammed into K-01 Serf. 01712_ Slammed into U-05 Engineer. 01714_ Acquired Lgt. Armor Plating. 01716_ Dropped Particle Gun. 01716_ Dropped Beam Cannon. 01718_ Acquired 4 matter. 01723_ A-02 Transporter suffers critical hit. 01723_ A-02 Transporter destroyed. 01733_ HV Slug penetrates A-02 Transporter. 01733_ A-02 Transporter suffers critical hit. 01733_ A-02 Transporter destroyed. 01733_ G-47 Trooper knocked back. 01737_ HV Slug penetrates Wall. 01738_ Lgt. Treads destroyed. 01739_ G-47 Trooper knocked back. 01741_ Lgt. Armor Plating destroyed. 01741_ U-05 Engineer builds a Wall. 01742_ R-06 Scavenger collects Med. Storage Unit. Map ----- +----------------------------------------------------+ | ?????????????????????????????????????????????????? | | ?????????????????????????????????????????????????? | | ?????????????????????????????????????????????????? | | ?????????????????????????????????????????????????? | | ?????????????????????????????????????????????????? | | ?????????????????????????????????????????????????? | | ?????????????????????????????????????????????????? | | ?????????????????????????????????????????????????? | | ?????????????????????????????????????????????????? | | ?????????????????????????????????????????????????? | | ?????????????????????????????????????????????????? | | ??????????????????????/####??????????????????????? | | ?????????????????????? #??????????????????????? | | ?????????????????????? #??????????????????????? | | ?????????????????????? #??????????????????????? | | ??????????????????????#grg#??????????????????????? | | ??????????????????????# !#??????????????????????? | | ??????????????????????#!!%#??????????????????????? | | ??????????????????????# *!+??????????????????????? | | ??????????????????????#u =#??????????????????????? | | ??????????????????????# #??????????????????????? | | ?????????????????????## ##?????????????????????? | | ?????????#########+### ##### ##### ?????????? | | ???????? =uw ????????? | | ???????? ]// ????????? | | ???????? r @/%/! ????????? | | ???????????????#######] ]#######???????????????? | | ?????????????????????# #####?????????????????????? | | ?????????????????????#[#?????????????????????????? | | ?????????????????????#%#??????########???????????? | | ???????????????????###%######################????? | | ???????????????????# %%% *%=* #????? | | ???????????????????# % ==! % ###### | | ???????????????????# ! # | | ???????????????????###########+########## # | | ???????????????????????????# ####??# # " | | ???????????????????????????# #?????# # " | | ???????????????????????????# """ #?????# # | | ???????????????????????????# """ #?????# #""" | | ???????????????????????????# """ #?????# #""" | | ???????????????????????????# #?????# #""" | | ???????????????????????????########?????# + | | ????????????????????????????????????????# ###### | | ???????????????????????????????#######??# #????? | | ???????????????????????????????# ?# #????? | | ???????????????????????????????# ?# #????? | | ???????????????????????????????# # #????? | | ???????????????????????????????# # #????? | | ???????????????????????????????# + #????? | | ???????????????????????????????# # #????? | +----------------------------------------------------+ Best States ------------- Heat Dissipation 45 Energy Generation 14 Energy Capacity 250 Matter Stores 300 Matter Capacity 300 Sight Range 16 Terrain Scan Density 60 Armor Coverage 150 Evasion (%) 40 Recoil Reduction 2 Item Schematics ----------------- Bore Cannon | -8/Materials | Scanalyzed Robot Schematics ------------------ None Fabricated ------------ Nothing Alien Tech Used ----------------- None Achievements -------------- None Challenges ------------ None Game ------ Seed CoilGammaMantle Manual? 0 Play Time 00:09:08 Cumulative 553.5 hours Start 2020.06.04 @ 09:35:03 End 2020.06.04 @ 10:08:45 Sessions 1 Manual Loads 0 Difficulty Rogue Special Mode None Game No. 888 Rogue 888 Adventurer 0 Explorer 0 Win Type - Total 52 Types 33/1/7/8/3/0/0 Lore% 94 Gallery% 94 Achievement% 82 Wizard Run 0 Options --------- ASCII 1 Keyboard 0 Movement Numpad Keybinds 0 Fullscreen 0 Font 14/SmallcapsGlow Map View 76x50 Tactical HUD 1 Map Filters NONE Filters NONE Steam 1 RUN: 484cbc5b-bba5-49bc-8bdd-e81c4521093d